fUSD/lending_fUSD_20240606
["ID","MTS","AMOUNT","RATE_DAILY","PERIOD"]
[328634509,1717644638974,-4e-08,0.00014,2]
[328634531,1717644642859,-304.33735203,0.00014,2]
[328634535,1717644643158,-1737.68677872,0.00014,2]
[328634536,1717644643172,-1478.93114536,0.00014,2]
[328634537,1717644643648,-10667.51878934,0.00014,2]
[328634538,1717644643926,-1079.52524161,0.00014,2]
[328634539,1717644643938,-2535.6528,0.00014,2]
[328634540,1717644644309,-478.70000222,0.00014,2]
[328634543,1717644646977,-150.01022293,0.00014,2]
[328634544,1717644646988,-8401.76107525,0.00014,2]
[328634545,1717644646999,-677.34,0.00014,2]
[328634546,1717644647011,-2151.17464644,0.00014,2]
[328634552,1717644709858,157.40694559,0.000105,2]
[328634553,1717644709886,2395.01921519,0.000105,2]
[328634554,1717644721642,1704.38705402,0.000105,2]
[328634555,1717644756206,180.60886759,0.000105,2]
[328634556,1717644770204,180.60886759,0.000105,2]
[328634557,1717644788205,178.96435495,0.000105,2]
[328634558,1717644845179,30808.49727657,0.000118,2]
[328634559,1717644898097,9054.0,0.00029,90]
[328634561,1717644969763,151.617253,0.00033546,30]
[328634563,1717645065157,501.26,0.00033546,30]
[328634564,1717645066650,500.0,0.00033546,30]
[328634565,1717645067228,500.0,0.00033546,30]
[328634566,1717645071021,500.0,0.00033546,30]
[328634568,1717645071659,500.0,0.00033546,30]
[328634569,1717645071921,500.0,0.00033546,30]
[328634570,1717645072195,500.0,0.00033546,30]
[328634571,1717645072481,598.24,0.00033546,30]
[328634572,1717645076644,500.0,0.00033546,30]
[328634573,1717645076924,500.0,0.00033546,30]
[328634574,1717645077273,500.0,0.00033546,30]
[328634575,1717645077584,500.0,0.00033546,30]
[328634576,1717645077855,595.66,0.00033546,30]
[328634577,1717645078434,500.0,0.00033546,30]
[328634578,1717645078705,500.0,0.00033546,30]
[328634579,1717645080823,500.0,0.00033546,30]
[328634580,1717645081088,500.0,0.00033546,30]
[328634581,1717645081408,500.0,0.00033546,30]
[328634582,1717645081891,500.0,0.00033546,30]
[328634583,1717645081937,500.0,0.00033546,30]
[328634584,1717645082217,265.92,0.00033546,30]
[328634585,1717645086556,885.84,0.00011375,2]
[328634586,1717645091772,500.0,0.00033546,30]
[328634587,1717645092041,500.0,0.00033546,30]
[328634588,1717645092355,500.0,0.00033546,30]
[328634589,1717645092710,500.0,0.00033546,30]
[328634590,1717645093022,500.0,0.00033546,30]
[328634591,1717645093304,500.0,0.00033546,30]
[328634592,1717645093581,174.24,0.00033546,30]
[328634593,1717645103036,500.0,0.00033546,30]
[328634594,1717645103312,500.0,0.00033546,30]
[328634595,1717645105663,500.0,0.00033546,30]
[328634596,1717645105937,500.0,0.00033546,30]
[328634597,1717645108594,500.0,0.00033546,30]
[328634598,1717645108866,500.0,0.00033546,30]
[328634599,1717645109118,500.0,0.00033546,30]
[328634600,1717645109403,500.0,0.00033546,30]
[328634601,1717645109702,500.0,0.00033546,30]
[328634602,1717645109964,500.0,0.00033546,30]
[328634603,1717645110240,181.9,0.00033546,30]
[328634604,1717645113980,500.0,0.00033546,30]
[328634605,1717645114288,500.0,0.00033546,30]
[328634606,1717645114757,189.22,0.00033546,30]
[328634607,1717645124958,500.0,0.00033546,30]
[328634608,1717645125270,500.0,0.00033546,30]
[328634609,1717645126159,315.64,0.00033546,30]
[328634610,1717645130485,500.0,0.00033546,30]
[328634611,1717645130783,500.0,0.00033546,30]
[328634612,1717645135222,257.54937681,0.00033546,30]
[328634613,1717645140323,500.0,0.00033546,30]
[328634614,1717645140621,500.0,0.00033546,30]
[328634615,1717645141106,500.0,0.00033546,30]
[328634616,1717645141418,580.22940102,0.00033546,30]
[328634617,1717645141755,500.0,0.00033546,30]
[328634618,1717645146176,500.0,0.00033546,30]
[328634619,1717645146434,500.0,0.00033546,30]
[328634620,1717645146730,500.0,0.00033546,30]
[328634621,1717645147008,198.44,0.00033546,30]
[328634622,1717645151352,500.0,0.00033546,30]
[328634623,1717645151687,500.0,0.00033546,30]
[328634624,1717645152005,500.0,0.00033546,30]
[328634625,1717645152352,500.0,0.00033546,30]
[328634626,1717645152975,500.0,0.00033546,30]
[328634627,1717645153294,500.0,0.00033546,30]
[328634628,1717645153579,500.0,0.00033546,30]
[328634629,1717645153873,500.0,0.00033546,30]
[328634630,1717645154165,500.0,0.00033546,30]
[328634631,1717645154804,500.0,0.00033546,30]
[328634632,1717645155466,295.66,0.00033546,30]
[328634633,1717645156005,500.0,0.00033546,30]
[328634634,1717645156291,500.0,0.00033554,30]
[328634635,1717645161293,500.0,0.00033554,30]
[328634636,1717645161578,500.0,0.00033554,30]
[328634637,1717645163133,500.0,0.00033554,30]
[328634638,1717645163416,500.0,0.00033554,30]
[328634639,1717645177224,500.0,0.00033554,30]
[328634640,1717645177502,500.0,0.00033554,30]
[328634641,1717645177788,464.5,0.00033554,30]
[328634642,1717645181419,500.0,0.00033554,30]
[328634643,1717645181747,500.0,0.00033554,30]
[328634644,1717645182960,500.0,0.00033554,30]
[328634645,1717645183233,618.66901067,0.00033554,30]
[328634646,1717645185509,500.0,0.00033554,30]
[328634647,1717645185758,500.0,0.00033554,30]
[328634648,1717645208402,500.0,0.00033554,30]
[328634649,1717645208543,500.0,0.00033554,30]
[328634650,1717645208674,500.0,0.00033554,30]
[328634651,1717645208881,500.0,0.00033554,30]
[328634652,1717645209076,500.0,0.00033554,30]
[328634653,1717645209465,500.0,0.00033554,30]
[328634654,1717645209764,155.48,0.00033554,30]
[328634655,1717645213350,500.0,0.00033554,30]
[328634656,1717645213487,500.0,0.00033554,30]
[328634657,1717645213768,500.0,0.00033554,30]
[328634658,1717645214033,220.74333665,0.00033554,30]
[328634659,1717645216664,500.0,0.00033554,30]
[328634660,1717645216942,500.0,0.00033554,30]
[328634661,1717645218948,500.0,0.00033554,30]
[328634662,1717645219280,500.0,0.00033554,30]
[328634663,1717645222243,500.0,0.00033554,30]
[328634664,1717645222522,500.0,0.00033554,30]
[328634665,1717645226594,500.0,0.00033554,30]
[328634666,1717645226891,526.35208985,0.00033554,30]
[328634667,1717645228452,500.0,0.00033554,30]
[328634668,1717645228724,500.0,0.00033554,30]
[328634669,1717645229149,500.0,0.00033554,30]
[328634670,1717645229458,593.4892777,0.00033554,30]
[328634671,1717645231793,500.0,0.00033554,30]
[328634672,1717645232099,615.87803893,0.00033554,30]
[328634673,1717645233391,500.0,0.00033554,30]
[328634674,1717645233978,500.0,0.00033554,30]
[328634675,1717645234015,500.0,0.00033554,30]
[328634676,1717645234056,500.0,0.00033554,30]
[328634677,1717645234092,619.64501048,0.00033554,30]
[328634678,1717645234233,500.0,0.00033554,30]
[328634679,1717645234531,500.0,0.00033554,30]
[328634680,1717645234787,500.0,0.00033554,30]
[328634681,1717645235115,500.0,0.00033554,30]
[328634682,1717645235397,500.0,0.00033554,30]
[328634683,1717645235673,500.0,0.00033554,30]
[328634684,1717645235921,500.0,0.00033554,30]
[328634685,1717645236257,500.0,0.00033554,30]
[328634686,1717645236552,500.0,0.00033554,30]
[328634687,1717645236854,500.0,0.00033554,30]
[328634688,1717645237123,500.0,0.00033554,30]
[328634689,1717645237400,500.0,0.00033554,30]
[328634690,1717645237668,500.0,0.00033554,30]
[328634691,1717645237948,500.0,0.00033554,30]
[328634692,1717645238218,500.0,0.00033554,30]
[328634693,1717645238514,500.0,0.00033554,30]
[328634694,1717645238595,500.0,0.00033554,30]
[328634695,1717645238852,500.0,0.00033554,30]
[328634696,1717645238899,500.0,0.00033554,30]
[328634697,1717645239191,216.36252908,0.00033554,30]
[328634698,1717645240365,500.0,0.00033554,30]
[328634699,1717645240651,500.0,0.00033554,30]
[328634700,1717645240931,293.76,0.00033554,30]
[328634701,1717645242602,500.0,0.00033554,30]
[328634702,1717645242938,500.0,0.00033554,30]
[328634703,1717645242979,500.0,0.00033554,30]
[328634704,1717645243242,500.0,0.00033554,30]
[328634705,1717645243511,220.48102286,0.00033554,30]
[328634706,1717645245143,500.0,0.00033554,30]
[328634707,1717645245439,500.0,0.00033554,30]
[328634708,1717645247213,500.0,0.00033554,30]
[328634709,1717645247253,500.0,0.00033554,30]
[328634710,1717645247401,500.0,0.00033554,30]
[328634711,1717645247505,240.0640802,0.00033554,30]
[328634712,1717645247688,500.0,0.00033554,30]
[328634713,1717645247868,500.0,0.00033554,30]
[328634714,1717645247904,500.0,0.00033554,30]
[328634715,1717645248155,500.0,0.00033554,30]
[328634716,1717645248208,500.0,0.00033554,30]
[328634717,1717645248430,508.71936479,0.00033554,30]
[328634718,1717645249962,500.0,0.00033554,30]
[328634719,1717645250750,500.0,0.00033554,30]
[328634720,1717645259560,500.0,0.00033554,30]
[328634721,1717645260042,500.0,0.00033554,30]
[328634722,1717645264639,500.0,0.00033554,30]
[328634723,1717645264846,500.0,0.00033554,30]
[328634725,1717645269128,500.0,0.00033554,30]
[328634726,1717645269416,500.0,0.00033554,30]
[328634727,1717645271534,150.0,0.00033554,30]
[328634728,1717645274026,500.0,0.00033554,30]
[328634729,1717645274298,500.0,0.00033554,30]
[328634730,1717645274584,500.0,0.00033554,30]
[328634731,1717645274876,500.0,0.00033554,30]
[328634732,1717645275174,500.0,0.00033554,30]
[328634733,1717645275482,500.0,0.00033554,30]
[328634734,1717645275768,500.0,0.00033554,30]
[328634735,1717645276034,500.0,0.00033554,30]
[328634736,1717645276330,500.0,0.00033554,30]
[328634737,1717645276639,500.0,0.00033554,30]
[328634738,1717645276923,500.0,0.00033554,30]
[328634739,1717645277206,500.0,0.00033554,30]
[328634740,1717645277513,500.0,0.00033554,30]
[328634741,1717645278832,500.0,0.00033554,30]
[328634742,1717645278882,465.18,0.00033554,30]
[328634744,1717645282108,500.0,0.00033554,30]
[328634745,1717645282438,500.0,0.00033554,30]
[328634746,1717645290863,500.0,0.00033554,30]
[328634747,1717645291245,500.0,0.00033554,30]
[328634749,1717645291651,500.0,0.00033554,30]
[328634750,1717645292264,423.02,0.00033554,30]
[328634751,1717645295825,205.53087797,0.00012587,2]
[328634752,1717645300843,640.45350203,0.00012587,2]
[328634754,1717645318962,500.0,0.00033554,30]
[328634755,1717645319256,500.0,0.00033554,30]
[328634757,1717645374898,175.1616438,0.00033554,30]
[328634759,1717645412437,500.0,0.00033554,30]
[328634760,1717645465120,500.0,0.00033554,30]
[328634761,1717645465427,500.0,0.00033554,30]
[328634762,1717645465707,500.0,0.00033554,30]
[328634763,1717645465977,500.0,0.00033554,30]
[328634764,1717645466225,500.0,0.00033554,30]
[328634765,1717645466520,500.0,0.00033554,30]
[328634766,1717645466789,500.0,0.00033554,30]
[328634767,1717645467066,500.0,0.00033554,30]
[328634768,1717645467346,453.4,0.00033554,30]
[328634769,1717645478689,191.5110379,0.00033554,30]
[328634770,1717645487790,500.0,0.00033554,30]
[328634771,1717645488085,500.0,0.00033554,30]
[328634772,1717645488354,332.56,0.00033554,30]
[328634773,1717645498283,156.59568569,0.00012199,2]
[328634774,1717645501630,155.0,0.00012199,2]
[328634775,1717645502915,150.0,0.00012199,2]
[328634776,1717645505338,500.0,0.00033554,30]
[328634777,1717645505624,500.0,0.00033554,30]
[328634778,1717645505888,526.55099911,0.00033554,30]
[328634779,1717645509940,150.0,0.00012164,2]
[328634780,1717645517480,2335.29723679,0.00012199,2]
[328634781,1717645521082,217.72202082,0.00012199,2]
[328634782,1717645522713,338.42938722,0.00012199,2]
[328634783,1717645531118,862.2779721,0.00012199,2]
[328634784,1717645532582,500.0,0.00033554,30]
[328634785,1717645532846,500.0,0.00033554,30]
[328634786,1717645533106,500.0,0.00033554,30]
[328634788,1717645533397,500.0,0.00033554,30]
[328634789,1717645533697,513.79565516,0.00033554,30]
[328634790,1717645536983,161.46550851,0.00012199,2]
[328634791,1717645538117,500.0,0.00033554,30]
[328634792,1717645538369,207.82341493,0.00033554,30]
[328634793,1717645539173,208.07331361,0.00012199,2]
[328634794,1717645542503,500.0,0.00033554,30]
[328634795,1717645542768,500.0,0.00033554,30]
[328634796,1717645543045,500.0,0.00033554,30]
[328634797,1717645543311,500.0,0.00033554,30]
[328634798,1717645543564,518.60183786,0.00033554,30]
[328634799,1717645545896,8416.30367655,0.00012199,2]
[328634800,1717645546150,155.0,0.00012199,2]
[328634801,1717645550426,645.39979882,0.00012199,2]
[328634802,1717645568188,525.03311929,0.00012199,2]
[328634803,1717645574507,947.47056362,0.00012199,2]
[328634804,1717645576861,155.0,0.00012199,2]
[328634805,1717645578812,366.71736906,0.00012199,2]
[328634806,1717645580544,481.69810902,0.00012199,2]
[328634807,1717645581003,1362.97468143,0.00012199,2]
[328634808,1717645584589,500.0,0.00033554,30]
[328634809,1717645590505,947.47056362,0.00012199,2]
[328634810,1717645591165,155.0,0.00012199,2]
[328634811,1717645591631,1075.81117244,0.00012101,2]
[328634812,1717645592253,2552.42616078,9.149e-05,2]
[328634813,1717645592686,337.80398391,0.00012199,2]
[328634816,1717645596621,500.0,0.00033554,30]
[328634817,1717645596774,632.15,0.00033554,30]
[328634818,1717645603006,1362.97468143,0.00012199,2]
[328634819,1717645606249,2552.42616078,9.149e-05,2]
[328634820,1717645608509,947.47056362,0.00012199,2]
[328634821,1717645609190,957.53926875,0.00011589,2]
[328634822,1717645612866,208.48463648,0.00012199,2]
[328634823,1717645620005,155.0,0.00012199,2]
[328634824,1717645623026,1362.97468143,0.00012199,2]
[328634825,1717645623196,957.53926875,0.00011589,2]
[328634826,1717645624321,2552.42616078,9.149e-05,2]
[328634827,1717645625992,155.0,0.00012199,2]
[328634828,1717645626082,327.81540231,0.00012199,2]
[328634829,1717645628512,1025.52918933,0.00012199,2]
[328634830,1717645630411,362.81476569,0.00012199,2]
[328634831,1717645633755,19769.39955785,0.00012199,2]
[328634832,1717645634529,-150.0,0.00012202,2]
[328634833,1717645634551,-250.0,0.00012231,2]
[328634834,1717645634573,-23900.0,0.0001224,2]
[328634835,1717645634594,-201.53,0.00012254,2]
[328634836,1717645634616,-200.0,0.00012297,2]
[328634837,1717645634638,-200.0,0.00012304,2]
[328634838,1717645634659,-250.0,0.00012313,2]
[328634839,1717645634680,-400.41,0.0001234,2]
[328634840,1717645634700,-499.99,0.00012587,2]
[328634841,1717645634723,-461.82,0.00012587,2]
[328634842,1717645634744,-10970.15287954,0.00012587,2]
[328634843,1717645634767,-6209.07,0.00012588,2]
[328634844,1717645634789,-5179.89,0.00012588,2]
[328634845,1717645634810,-442.09,0.0001259,2]
[328634846,1717645634832,-172.76,0.0001263,2]
[328634847,1717645635054,-660.35,0.00012672,2]
[328634848,1717645635075,-168.26,0.0001274,2]
[328634849,1717645635106,-704.25,0.00012741,2]
[328634850,1717645635128,-172.76,0.00012762,2]
[328634851,1717645635150,-178.2,0.00012796,2]
[328634852,1717645635172,-255.74,0.00012835,2]
[328634853,1717645635193,-172.76,0.00012894,2]
[328634854,1717645635233,4441.68139867,0.00012239,2]
[328634855,1717645635264,347.51456549,0.00012199,2]
[328634856,1717645636005,262.52303666,0.00012199,2]
[328634857,1717645637067,24651.71873134,0.00012199,2]
[328634858,1717645637214,957.53926875,0.00011589,2]
[328634859,1717645638830,57538.99011955,0.00012199,2]
[328634860,1717645638854,99761.32438851,0.00012199,2]
[328634861,1717645642269,2552.42616078,9.149e-05,2]
[328634862,1717645650958,841.54,0.00011073,2]
[328634863,1717645653200,882.34452731,0.00011589,2]
[328634864,1717645657156,500.0,0.00033637,30]
[328634865,1717645657657,523.10948154,0.00033637,30]
[328634866,1717645658313,2552.42616078,9.149e-05,2]
[328634867,1717645669720,-304.74900794,0.00012198,2]
[328634868,1717645669746,-19695.25099206,0.00012199,2]
[328634869,1717645673242,957.53926875,0.00011589,2]
[328634870,1717645676256,2552.42616078,9.149e-05,2]
[328634871,1717645677968,-20000.0,0.00012199,2]
[328634872,1717645686006,-150.0,0.00012198,2]
[328634873,1717645686029,-19850.0,0.00012199,2]
[328634874,1717645688410,500.0,0.00033637,30]
[328634875,1717645688662,500.0,0.00033637,30]
[328634876,1717645688925,500.0,0.00033637,30]
[328634877,1717645689187,294.28590216,0.00033637,30]
[328634878,1717645693535,-161.46550851,0.00012197,2]
[328634879,1717645693560,-19838.53449149,0.00012199,2]
[328634880,1717645694295,1443.77943407,9.149e-05,2]
[328634881,1717645697536,1362.97468143,0.00011589,2]
[328634882,1717645698802,19769.39955785,0.00011589,2]
[328634883,1717645698914,362.81476569,0.00011589,2]
[328634884,1717645700562,155.0,0.00011589,2]
[328634885,1717645701663,16567.32928256,0.00011589,2]
[328634886,1717645726656,-8084.38944878,0.00011589,2]
[328634887,1717645726679,-262.52303666,0.00011589,2]
[328634888,1717645726702,-347.51456549,0.00011589,2]
[328634889,1717645726725,-1305.57294907,0.00011589,2]
[328634890,1717645746320,-54722.723,0.00011589,2]
[328634891,1717645751138,-259786.53,0.00011589,2]
[328634892,1717645753107,-11395.22880787,0.00011589,2]
[328634893,1717645764155,-1066.92955334,0.00011589,2]
[328634894,1717645770124,-40837.67670669,0.00011589,2]
[328634895,1717645770959,-179566.7804267,0.00011589,2]
[328634896,1717645770981,-1369.80249562,0.00011589,2]
[328634897,1717645771003,-11063.41707768,0.00011589,2]
[328634902,1717645804010,-671.91022246,0.00011588,2]
[328634903,1717645804032,-8705.98248017,0.00011589,2]
[328634904,1717645804053,-155.0,0.00011589,2]
[328634905,1717645804077,-362.81476569,0.00011589,2]
[328634906,1717645804099,-349.39551921,0.00011589,2]
[328634907,1717645804121,-11275.98347171,0.00011589,2]
[328634908,1717645804142,-218.76919722,0.00011589,2]
[328634909,1717645804165,-28260.14434354,0.00011589,2]
[328634910,1717645811323,-30000.0,0.00011589,2]
[328634911,1717645818848,-20000.0,0.00011589,2]
[328634922,1717645832330,-2380.55745511,0.00011589,2]
[328634924,1717645832342,-1966.22875406,0.00011589,2]
[328634925,1717645832355,-6438.08321885,0.00011589,2]
[328634926,1717645832367,-1850.72560984,0.00011589,2]
[328634927,1717645832379,-5737.5,0.00011589,2]
[328634928,1717645832391,-347.96815075,0.00011589,2]
[328634929,1717645832402,-4144.26708576,0.00011589,2]
[328634930,1717645832413,-6646.41226186,0.00011589,2]
[328634931,1717645832444,-13908.88798086,0.00011589,2]
[328634932,1717645835181,-6776.79870276,0.00011589,2]
[328634933,1717645835193,-7325.44313333,0.00011589,2]
[328634934,1717645835296,-957.53926875,0.0001101,2]
[328634935,1717645835306,-222722.63023761,0.00011589,2]
[328634936,1717645835316,-9094.94070298,0.00011589,2]
[328634937,1717645835326,-218.76919722,0.00011589,2]
[328634938,1717645835336,-362.81476569,0.00011589,2]
[328634939,1717645835345,-265.75874444,0.00011589,2]
[328634940,1717645835355,-10970.15287954,0.000124,2]
[328634941,1717645835365,-161.46550851,0.00012938,2]
[328634942,1717645835375,-2886.96,0.00012939,2]
[328634943,1717645835385,-2000.0,0.00012949,3]
[328634944,1717645835394,-172.76,0.00013025,2]
[328634945,1717645835404,-172.76,0.00013157,2]
[328634946,1717645835414,-172.76,0.00013288,2]
[328634947,1717645835424,-841.54,0.00013337,2]
[328634948,1717645835434,-200.0,0.000134,4]
[328634949,1717645835444,-255.57,0.000134,2]
[328634950,1717645835458,-11619.69,0.000134,2]
[328634951,1717645835467,-210.0,0.00013418,2]
[328634952,1717645835476,-150.99,0.00013418,2]
[328634954,1717645835486,-839.86,0.00013418,2]
[328634956,1717645835499,-1000.0,0.00013472,2]
[328634958,1717645835508,-500.0,0.000135,4]
[328634960,1717645835518,-700.0,0.000136,4]
[328634962,1717645835529,-200.0,0.00013699,2]
[328634964,1717645835539,-335.63,0.00013699,2]
[328634987,1717645835730,-1136.58,0.00013699,2]
[328634990,1717645835740,-2751.0,0.00013699,2]
[328634992,1717645835750,-1000.0,0.000137,5]
[328634995,1717645835760,-304.74900794,0.00013798,2]
[328634998,1717645835769,-445.12077631,0.000138,2]
[328635000,1717645835781,-5574.85322369,0.000138,2]
[328635001,1717645835791,-3842.00877631,0.000138,2]
[328635002,1717645835802,-404.4999995,0.000138,2]
[328635003,1717645835814,-44882.28588791,0.000138,2]
[328635004,1717645835829,-611.8,0.000138,2]
[328635005,1717645835841,-4010.82121495,0.000138,2]
[328635006,1717645835858,-779.28,0.000138,2]
[328635007,1717645835874,-27747.32782133,0.000138,2]
[328635008,1717645835883,-1200.0,0.000138,5]
[328635009,1717645835893,-288.3822897,0.00013806,2]
[328635010,1717645835903,-326.97129438,0.00013838,2]
[328635011,1717645835913,-164.5370238,0.0001389,2]
[328635012,1717645835923,-228.32569543,0.0001389,2]
[328635013,1717645835932,-210.39537763,0.00013898,2]
[328635014,1717645835942,-291.79474911,0.00013898,2]
[328635015,1717645835952,-1420.01114444,0.00013898,2]
[328635016,1717645835961,-180.0,0.00013898,2]
[328635017,1717645835971,-155.46563517,0.00013898,2]
[328635018,1717645835980,-7560.87366387,0.00013898,2]
[328635019,1717645835990,-155.22578566,0.00013898,2]
[328635020,1717645835999,-537.34426648,0.00013898,2]
[328635021,1717645836009,-264.41496832,0.00013898,2]
[328635022,1717645836019,-215.95453193,0.00013898,2]
[328635023,1717645836029,-593.16718752,0.00013898,2]
[328635024,1717645836038,-158.30091609,0.00013898,2]
[328635025,1717645836048,-156.7081457,0.00013898,2]
[328635026,1717645836058,-452.83396287,0.00013898,2]
[328635027,1717645836067,-217.47523029,0.00013898,2]
[328635028,1717645836077,-1618.85939652,0.00013898,2]
[328635029,1717645836087,-785.8451137,0.00013898,2]
[328635030,1717645836097,-410.37067847,0.00013898,2]
[328635031,1717645836107,-155.0,0.00013898,2]
[328635032,1717645836117,-346.17560194,0.00013898,2]
[328635033,1717645836127,-188.08785057,0.00013898,2]
[328635034,1717645836137,-471.58008141,0.00013898,2]
[328635035,1717645836146,-327.90106208,0.00013898,2]
[328635036,1717645836156,-1280.75270979,0.00013898,2]
[328635037,1717645836166,-155.00002669,0.00013898,2]
[328635038,1717645836175,-328.09848148,0.00013898,2]
[328635039,1717645836184,-266.9525918,0.00013898,2]
[328635040,1717645836194,-352.37788134,0.00013898,2]
[328635041,1717645836204,-341.98334635,0.00013898,2]
[328635042,1717645836212,-199.97296093,0.00013898,2]
[328635043,1717645836221,-647.84410275,0.00013898,2]
[328635044,1717645836231,-6096.40835922,0.00013898,2]
[328635045,1717645836241,-185.31741631,0.00013898,2]
[328635046,1717645836250,-3287.94205355,0.000139,2]
[328635047,1717645836260,-362.5541,0.000139,2]
[328635048,1717645836269,-229399.0525,0.000139,2]
[328635049,1717645836278,-187.64677854,0.000139,2]
[328635050,1717645836287,-16.2817627,0.000139,2]
[328635051,1717645836300,-387.900506,0.000139,2]
[328635052,1717645836310,-4006.8208,0.000139,2]
[328635053,1717645836319,-5308.58911768,0.000139,2]
[328635054,1717645836328,-200.0,0.000139,5]
[328635055,1717645836338,-391.1606483,0.000139,2]
[328635056,1717645836348,-257.26582895,0.000139,2]
[328635057,1717645836358,-286.92091214,0.000139,2]
[328635058,1717645836367,-2481.32958418,0.000139,2]
[328635059,1717645836377,-164.5370238,0.000139,2]
[328635060,1717645836387,-382.37501768,0.00013909,2]
[328635061,1717645836396,-154.74,0.00013989,2]
[328635062,1717645836406,-8630.2376331,0.00013989,2]
[328635063,1717645836415,-13811.08858274,0.00013989,2]
[328635064,1717645836427,-35356.645937,0.00013989,2]
[328635065,1717645836438,-33715.59484056,0.00013989,2]
[328635066,1717645836450,-154.74,0.0001399,2]
[328635067,1717645836460,-2.57404494,0.00013998,2]
[328635068,1717645836471,-854.82014811,0.00013998,2]
[328635069,1717645836483,-367.59628168,0.00013998,2]
[328635070,1717645836494,-229.74599739,0.00013998,2]
[328635071,1717645836507,-564.54314353,0.00013998,2]
[328635072,1717645836517,-140.37947079,0.00013998,2]
[328635073,1717645836665,-16.28895561,0.00013998,2]
[328635074,1717645836676,-909.40118627,0.00013998,2]
[328635075,1717645836685,-156.7012365,0.00013998,2]
[328635076,1717645836695,-176.38520029,0.00013998,2]
[328635077,1717645836705,-1073.55321088,0.00013998,2]
[328635078,1717645836717,-713.07366266,0.00013998,2]
[328635079,1717645836729,-631.01723124,0.00013998,2]
[328635080,1717645836739,-157.62144413,0.00013998,2]
[328635081,1717645836748,-104.95859711,0.00013999,2]
[328635082,1717645836766,-961.72885509,0.00013999,2]
[328635083,1717645836776,-180.35065448,0.00013999,2]
[328635084,1717645836787,-28.37435571,0.00013999,2]
[328635085,1717645836797,-408.64088858,0.00013999,2]
[328635086,1717645836806,-2727.73475638,0.00014,2]
[328635087,1717645836818,-6441.85381203,0.00014,2]
[328635088,1717645836892,2552.42616078,8.692e-05,2]
[328635089,1717645837024,-2335.29723679,0.00011588,2]
[328635090,1717645837046,-525.03311929,0.00011588,2]
[328635091,1717645837067,-155.0,0.00011588,2]
[328635092,1717645837089,-327.81540231,0.00011588,2]
[328635093,1717645837110,-366.71736906,0.00011589,2]
[328635104,1717645838314,-74271.27336288,0.00014,2]
[328635105,1717645838371,-915615.16512954,0.00014,2]
[328635106,1717645838432,180.60886759,0.00011589,2]
[328635107,1717645838467,1109.52800496,0.00011588,2]
[328635172,1717645841252,-7306.77567159,0.00011588,2]
[328635173,1717645841261,-481.69810902,0.00011588,2]
[328635174,1717645841270,-155.0,0.00011589,2]
[328635175,1717645841279,-947.47056362,0.00011589,2]
[328635176,1717645841288,-338.42938722,0.00013698,2]